bitfinex-derivatives/quotes_BTCF0:USTF0_20250922
["timestamp","ask_amount","ask_price","bid_price","bid_amount"]
[1758535805889,1.77453427,112570.0,112560.0,0.001]
[1758535806884,1.77753427,112570.0,112560.0,0.001]
[1758535807084,1.77753427,112570.0,112550.0,0.01328]
[1758535807287,0.6694996,112560.0,112550.0,0.021]
[1758535807486,0.6694996,112560.0,112550.0,0.1097866]
[1758535808587,0.6694996,112560.0,112550.0,0.021]
[1758535808794,0.6694996,112560.0,112540.0,0.75317718]
[1758535809090,0.84872,112550.0,112540.0,1.07417718]
[1758535809293,0.87183,112550.0,112540.0,0.80133758]
[1758535810689,0.87183,112550.0,112540.0,1.07417718]
[1758535812691,0.87183,112550.0,112540.0,1.0561185]
[1758535814902,0.87159,112550.0,112540.0,1.0561185]
[1758535815995,0.87159,112550.0,112540.0,1.13593596]
[1758535816298,0.87159,112550.0,112540.0,1.0561185]
[1758535818302,0.02311,112550.0,112540.0,1.0561185]
[1758535818497,0.71903,112550.0,112540.0,1.0561185]
[1758535818700,0.71903,112550.0,112540.0,0.86309636]
[1758535818899,0.71903,112550.0,112540.0,1.0561185]
[1758535820201,0.71903,112550.0,112540.0,0.7832789]
[1758535820503,0.71903,112550.0,112540.0,1.0561185]
[1758535821508,0.87123,112550.0,112540.0,1.13593596]
[1758535821805,0.87123,112550.0,112540.0,1.0561185]
[1758535822308,0.87123,112550.0,112540.0,1.13593596]
[1758535825605,0.2728396,112560.0,112540.0,1.13593596]
[1758535825606,0.02197,112560.0,112550.0,0.1251838]
[1758535825798,0.87001,112560.0,112550.0,0.3980234]
[1758535825992,0.87001,112560.0,112550.0,0.1251838]
[1758535826305,0.87041,112560.0,112550.0,0.1251838]
[1758535826801,0.87325,112560.0,112550.0,0.1251838]
[1758535828000,0.87425,112560.0,112550.0,0.1251838]
[1758535828699,0.02637,112560.0,112550.0,0.3980234]
[1758535828900,0.87425,112560.0,112550.0,0.6880234]
[1758535830205,0.87413,112560.0,112550.0,1.0488234]
[1758535830705,0.87365,112560.0,112550.0,0.98058456]
[1758535830894,0.87405,112560.0,112550.0,0.98058456]
[1758535831394,0.85104,112560.0,112550.0,0.98058456]
[1758535831594,0.87301,112560.0,112550.0,0.98058456]
[1758535832003,0.87297,112560.0,112550.0,0.98058456]
[1758535832302,0.87297,112560.0,112550.0,0.7759838]
[1758535832504,0.87297,112560.0,112550.0,0.98058456]
[1758535833005,0.86997,112560.0,112550.0,0.98058456]
[1758535834606,0.02237,112560.0,112550.0,0.98058456]
[1758535834906,0.86957,112560.0,112550.0,0.98058456]
[1758535835099,0.86957,112560.0,112550.0,0.7759838]
[1758535835300,0.86997,112560.0,112550.0,0.98058456]
[1758535836308,0.86997,112560.0,112550.0,1.06040202]
[1758535836513,0.86981,112560.0,112550.0,1.06040202]
[1758535840700,0.84712,112560.0,112550.0,1.06040202]
[1758535840901,0.84752,112560.0,112550.0,1.06040202]
[1758535841098,0.0004,112560.0,112550.0,1.26500278]
[1758535841297,0.02044467,112570.0,112560.0,0.1019387]
[1758535841507,0.86832467,112570.0,112560.0,1.23518022]
[1758535841705,0.02044467,112570.0,112560.0,1.23518022]
[1758535841900,0.86792467,112570.0,112560.0,1.23518022]
[1758535842910,0.86784467,112570.0,112560.0,1.23518022]
[1758535844408,0.02084467,112570.0,112560.0,1.23518022]
[1758535844607,0.86772467,112570.0,112560.0,1.23518022]
[1758535845111,0.88969467,112570.0,112560.0,0.8259787]
[1758535845417,0.88969467,112570.0,112560.0,0.7159787]
[1758535845709,0.88969467,112570.0,112560.0,1.12518022]
[1758535846906,0.04281467,112570.0,112560.0,1.12518022]
[1758535847104,0.88957467,112570.0,112560.0,0.7159787]
[1758535847301,0.88957467,112570.0,112560.0,0.89518022]
[1758535847505,0.86760467,112570.0,112560.0,1.16518022]
[1758535847800,0.86756467,112570.0,112560.0,1.16518022]
[1758535848211,0.02084467,112570.0,112560.0,1.16518022]
[1758535848405,0.86756467,112570.0,112560.0,1.16518022]
[1758535848804,0.86716467,112570.0,112560.0,1.16518022]
[1758535849005,0.86756467,112570.0,112560.0,1.16518022]
[1758535849510,0.86752467,112570.0,112560.0,1.16518022]
[1758535849812,0.0004,112570.0,112560.0,1.16518022]
[1758535850013,0.0004,112570.0,112560.0,1.18330649]
[1758535850205,0.0004,112570.0,112560.0,1.63790725]
[1758535850408,0.04282126,112580.0,112570.0,0.1251713]
[1758535850710,0.67162126,112580.0,112570.0,1.01057206]
[1758535851108,0.67202126,112580.0,112570.0,1.01057206]
[1758535852508,0.02125126,112580.0,112570.0,1.21517282]
[1758535852707,0.02085126,112580.0,112570.0,1.21517282]
[1758535853104,0.04322126,112580.0,112570.0,0.8059713]
[1758535853308,0.04322126,112580.0,112570.0,1.01057206]
[1758535854309,0.02125126,112580.0,112570.0,1.46517282]
[1758535854615,0.02125126,112580.0,112570.0,2.39131028]
[1758535855011,0.02085126,112580.0,112570.0,2.4049726]
[1758535855213,0.02125126,112580.0,112570.0,2.4049726]
[1758535857819,0.02085126,112580.0,112570.0,2.4049726]
[1758535858017,0.02125126,112580.0,112570.0,2.4049726]
[1758535860210,0.02125126,112580.0,112570.0,2.4046926]
[1758535860711,0.0004,112580.0,112570.0,1.01057206]
[1758535861917,0.0004,112580.0,112570.0,1.21517282]
[1758535862821,0.27149,112580.0,112570.0,0.0364]
[1758535863014,0.47609076,112580.0,112570.0,0.3972]
[1758535863215,0.47609076,112580.0,112570.0,0.60180076]
[1758535863416,0.27149,112580.0,112570.0,0.0364]
[1758535863720,0.27149,112580.0,112570.0,0.24100076]
[1758535865219,0.27149,112580.0,112570.0,0.3972]
[1758535865416,0.27149,112580.0,112570.0,0.98057206]
[1758535865821,0.27149,112580.0,112570.0,0.69057206]
[1758535866023,0.27149,112580.0,112570.0,0.96057206]
[1758535866724,0.86681,112580.0,112570.0,0.98057206]
[1758535866925,0.0004,112580.0,112570.0,0.98057206]
[1758535867418,1.08607683,112590.0,112580.0,0.03569]
[1758535867615,1.08597683,112590.0,112580.0,0.60109076]
[1758535868525,0.03565607,112590.0,112580.0,0.60109076]
[1758535868825,1.08997683,112590.0,112580.0,0.39649]
[1758535869017,1.08997683,112590.0,112580.0,0.24029076]
[1758535870119,0.88537607,112590.0,112580.0,0.24029076]
[1758535870325,1.08997683,112590.0,112580.0,0.24029076]
[1758535870627,0.88537607,112590.0,112580.0,0.24029076]
[1758535870821,1.08997683,112590.0,112580.0,0.24029076]
[1758535871023,0.24425683,112590.0,112580.0,0.24029076]
[1758535871224,0.03965607,112590.0,112580.0,0.80569152]
[1758535871522,1.08981683,112590.0,112580.0,0.60109076]
[1758535871727,0.88441607,112590.0,112580.0,0.60109076]
[1758535871928,0.88481607,112590.0,112580.0,0.60109076]
[1758535872334,0.03925607,112590.0,112580.0,0.68985416]
[1758535872522,0.03925607,112590.0,112580.0,1.21445492]
[1758535872826,0.01776607,112590.0,112580.0,1.23235809]
[1758535873029,0.86364607,112590.0,112580.0,1.23235809]
[1758535874530,0.84988,112590.0,112580.0,1.23235809]
[1758535874733,0.87095,112590.0,112580.0,0.82315657]
[1758535874924,0.87095,112590.0,112580.0,1.23235809]
[1758535875429,0.87095,112590.0,112580.0,0.73439317]
[1758535875617,1.32555076,112590.0,112580.0,0.25819393]
[1758535876227,1.12095,112590.0,112580.0,0.25819393]
[1758535876429,1.32555076,112590.0,112580.0,0.25819393]
[1758535876629,1.12095,112590.0,112580.0,0.25819393]
[1758535876830,1.32555076,112590.0,112580.0,0.05359317]
[1758535877122,1.48175,112590.0,112580.0,0.25819393]
[1758535877330,1.68635076,112590.0,112580.0,0.25819393]
[1758535877622,1.89095152,112590.0,112560.0,0.65608627]
[1758535877825,0.22567076,112570.0,112560.0,0.46790703]
[1758535878130,0.87968151,112570.0,112560.0,0.46790703]
[1758535878629,0.86635,112570.0,112560.0,0.67250779]
[1758535878823,0.86635,112570.0,112560.0,0.67350779]
[1758535879025,0.86635,112570.0,112560.0,0.47290703]
[1758535879428,0.88013017,112570.0,112560.0,0.47290703]
[1758535880031,0.88013017,112570.0,112560.0,1.12308689]
[1758535880228,0.86635,112570.0,112560.0,1.12308689]
[1758535880424,0.93833527,112570.0,112560.0,1.12308689]
[1758535881529,0.93829527,112570.0,112560.0,1.12308689]
[1758535881929,0.93829527,112570.0,112560.0,1.12208689]
[1758535882128,0.93789527,112570.0,112560.0,1.12208689]
[1758535882529,0.86631,112570.0,112560.0,1.12208689]
[1758535882730,0.86671,112570.0,112560.0,1.12208689]
[1758535883024,0.0004,112570.0,112560.0,1.12208689]
[1758535883223,0.02084538,112580.0,112570.0,0.0887712]
[1758535883431,0.04191538,112580.0,112570.0,1.23345272]
[1758535883725,0.04191538,112580.0,112570.0,1.02885196]
[1758535883933,0.02084538,112580.0,112570.0,1.23345272]
[1758535884528,0.02124538,112580.0,112570.0,1.02885196]
[1758535885735,0.24916614,112580.0,112570.0,0.73548]
[1758535885935,0.24916614,112580.0,112570.0,0.94008076]
[1758535886137,0.04456538,112580.0,112570.0,1.02885196]
[1758535890330,0.04456538,112580.0,112570.0,1.23345272]
[1758535890529,0.04456538,112580.0,112570.0,0.73548]
[1758535890530,0.24916614,112580.0,112570.0,0.73548]
[1758535890730,0.04456538,112580.0,112570.0,1.02885176]
[1758535891235,0.04456538,112580.0,112570.0,0.824251]
[1758535891629,0.04456538,112580.0,112570.0,1.02885176]
[1758535892538,0.04456538,112580.0,112570.0,0.39548]
[1758535893035,0.04456538,112580.0,112570.0,0.66821518]
[1758535893434,0.04456538,112580.0,112570.0,0.39548]
[1758535893937,0.04456538,112580.0,112570.0,0.66821518]
[1758535894233,0.04456538,112580.0,112570.0,0.70821518]
[1758535894437,0.04456538,112580.0,112570.0,0.79698618]
[1758535894739,0.04456538,112580.0,112570.0,1.04698618]
[1758535895141,0.88928538,112580.0,112570.0,1.04698618]
[1758535895839,0.88888538,112580.0,112570.0,1.04698618]
[1758535896036,0.88928538,112580.0,112570.0,1.04746618]
[1758535897342,0.88928538,112580.0,112570.0,0.774731]
[1758535897639,0.88928538,112580.0,112570.0,1.04746618]
[1758535898142,0.88928538,112580.0,112570.0,1.12971618]
[1758535900140,0.04456538,112580.0,112570.0,1.12971618]
[1758535900339,0.88912538,112580.0,112570.0,1.12971618]
[1758535904542,0.88912538,112580.0,112570.0,1.20255618]
[1758535906645,0.88912538,112580.0,112570.0,1.20355618]
[1758535906945,0.86828,112580.0,112570.0,1.20355618]
[1758535907442,0.86828,112580.0,112570.0,1.20755618]
[1758535911345,0.86828,112580.0,112570.0,0.934821]
[1758535911542,0.86828,112580.0,112570.0,1.20755618]
[1758535913548,0.02372,112580.0,112570.0,1.20755618]
[1758535913749,0.86784,112580.0,112570.0,1.20755618]
[1758535914248,0.02372,112580.0,112570.0,1.20755618]
[1758535914449,0.86772,112580.0,112570.0,1.20755618]
[1758535914944,0.0004,112580.0,112570.0,1.20755618]
[1758535915248,0.01381542,112590.0,112580.0,0.1236433]
[1758535915249,0.0001,112590.0,112580.0,0.1236433]
[1758535915443,0.57927,112600.0,112590.0,0.1236354]
[1758535915639,0.57917,112600.0,112590.0,1.00717058]
[1758535916653,0.58217,112600.0,112590.0,1.00717058]
[1758535919363,0.58317,112600.0,112590.0,1.00717058]
[1758535919660,0.59589294,112600.0,112590.0,1.00717058]
[1758535919863,0.59509294,112600.0,112590.0,1.00717058]
[1758535920063,0.59549294,112600.0,112590.0,1.00717058]
[1758535921452,0.02561,112600.0,112590.0,1.00717058]
[1758535921656,0.86925,112600.0,112590.0,1.00717058]
[1758535922963,0.86925,112600.0,112590.0,0.75717058]
[1758535923163,0.86925,112600.0,112590.0,1.02717058]
[1758535924479,0.88213993,112600.0,112590.0,0.4844354]
[1758535924668,0.88213993,112600.0,112590.0,0.75717058]
[1758535925164,0.88213993,112600.0,112590.0,0.4844354]
[1758535925363,0.88213993,112600.0,112590.0,0.75717058]
[1758535926066,0.88213993,112600.0,112590.0,0.4844354]
[1758535926264,0.88213993,112600.0,112590.0,0.75717058]
[1758535926864,1.76567511,112600.0,112580.0,0.01409]
[1758535927060,0.88223993,112600.0,112590.0,0.02117]
[1758535927260,0.88213993,112600.0,112590.0,0.02117]
[1758535927460,0.88213993,112600.0,112590.0,0.03488]
[1758535928867,0.88113993,112600.0,112590.0,0.03576]
[1758535929164,1.24193993,112600.0,112590.0,0.03576]
[1758535929567,1.24193993,112600.0,112590.0,0.00088]
[1758535929772,1.24293993,112600.0,112590.0,0.00088]
[1758535930462,1.51567511,112600.0,112590.0,0.00088]
[1758535932672,1.76567511,112600.0,112590.0,0.00088]
[1758535934165,1.78974858,112600.0,112590.0,0.00088]
[1758535935379,0.94610858,112600.0,112590.0,0.00088]
[1758535935670,1.78930858,112600.0,112590.0,0.02205]
[1758535936068,1.5165734,112600.0,112590.0,0.00088]
[1758535936373,1.78930858,112600.0,112590.0,0.02375]
[1758535936875,1.78930858,112600.0,112590.0,0.00088]
[1758535938571,1.78918858,112600.0,112590.0,0.00088]
[1758535939560,0.94610858,112600.0,112590.0,0.02375]
[1758535939762,1.78906858,112600.0,112590.0,0.10599]
[1758535940168,1.78906858,112600.0,112590.0,0.08312]
[1758535941168,1.53906858,112600.0,112590.0,0.08312]
[1758535942174,0.69610858,112600.0,112590.0,0.08312]
[1758535942377,1.53902858,112600.0,112590.0,0.08312]
[1758535942775,0.69610858,112600.0,112590.0,0.08312]
[1758535942974,1.53898858,112600.0,112590.0,0.08312]
[1758535944674,1.2662134,112600.0,112590.0,0.39038518]
[1758535944874,1.2658134,112600.0,112590.0,0.39073518]
[1758535945070,0.4233734,112600.0,112590.0,0.47949058]
[1758535945376,1.53886858,112600.0,112590.0,0.2067554]
[1758535945773,1.53886858,112600.0,112590.0,0.10538]
[1758535947074,1.51479511,112600.0,112590.0,0.10538]
[1758535948979,1.51471511,112600.0,112590.0,0.10538]
[1758535950383,0.67203511,112600.0,112590.0,0.10538]
[1758535950583,1.51463511,112600.0,112590.0,0.10538]
[1758535951283,1.53867925,112600.0,112590.0,0.1941353]
[1758535951985,1.53867925,112600.0,112590.0,0.10538]
[1758535952284,1.53874692,112600.0,112590.0,0.10538]
[1758535952784,1.67493646,112600.0,112590.0,0.10538]
[1758535953681,0.83245646,112600.0,112590.0,0.118]
[1758535953881,1.67493646,112600.0,112590.0,0.118]
[1758535954082,1.4704341,112600.0,112590.0,0.32250236]
[1758535955584,1.67493646,112600.0,112590.0,0.118]
[1758535957080,1.67493646,112600.0,112590.0,0.10538]
[1758535959276,1.67493646,112600.0,112590.0,0.08347]
[1758535960289,1.26593174,112600.0,112590.0,0.10538]
[1758535960488,1.67493646,112600.0,112590.0,0.1782]
[1758535963188,1.67493646,112600.0,112590.0,0.19082]
[1758535963790,1.4704341,112600.0,112590.0,0.39532236]
[1758535963984,1.4704341,112600.0,112590.0,0.19082]
[1758535964185,1.67493646,112600.0,112590.0,0.19082]
[1758535964785,1.67493646,112600.0,112590.0,0.15629]
[1758535966794,1.67493646,112600.0,112590.0,0.19082]
[1758535969198,1.26593174,112600.0,112590.0,0.19082]
[1758535969396,1.67493646,112600.0,112590.0,0.19082]
[1758535978404,1.26593174,112600.0,112590.0,0.19082]
[1758535978703,1.67493646,112600.0,112590.0,0.19082]
[1758535979605,1.26593174,112600.0,112590.0,0.19082]
[1758535979796,1.67493646,112600.0,112590.0,0.19082]
[1758535982099,0.83245646,112600.0,112590.0,0.19082]
[1758535982305,1.67353646,112600.0,112590.0,0.19082]
[1758535983605,1.26453174,112600.0,112590.0,0.19082]
[1758535983802,0.90365174,112600.0,112590.0,0.19086]
[1758535984002,1.31265646,112600.0,112590.0,0.19086]
[1758535984200,0.47165646,112600.0,112590.0,0.279615]
[1758535984400,1.67345646,112600.0,112590.0,0.19086]
[1758535986005,1.67345646,112600.0,112590.0,0.15633]
[1758535986908,1.67345646,112600.0,112590.0,0.17927]
[1758535987911,1.67345646,112600.0,112590.0,0.19208]
[1758535988609,1.67329646,112600.0,112590.0,0.19208]
[1758535995817,1.67329646,112600.0,112590.0,0.15633]
[1758535996717,1.67273646,112600.0,112590.0,0.15633]
[1758535997017,1.67273646,112600.0,112590.0,0.17907]
[1758535998119,1.26373174,112600.0,112590.0,0.17907]
[1758535998314,1.67273646,112600.0,112590.0,0.17907]
[1758536000818,1.26373174,112600.0,112590.0,0.17907]
[1758536001117,1.67273646,112600.0,112590.0,0.17907]
[1758536003022,1.26373174,112600.0,112590.0,0.17907]
[1758536003316,1.67237646,112600.0,112590.0,0.19299]
[1758536004522,1.67229646,112600.0,112590.0,0.19299]
[1758536004918,1.4677941,112600.0,112590.0,0.19299]
[1758536006121,1.67229646,112600.0,112590.0,0.19299]
[1758536010828,1.67229646,112600.0,112590.0,0.17907]
[1758536012431,1.67229646,112600.0,112590.0,0.15633]
[1758536013634,1.26329174,112600.0,112590.0,0.15633]
[1758536013930,1.67129646,112600.0,112590.0,0.15633]
[1758536014626,1.53498175,112600.0,112590.0,0.15633]
[1758536014829,1.53598175,112600.0,112590.0,0.15633]
[1758536015029,1.53298175,112600.0,112590.0,0.15633]
[1758536015329,1.53250175,112600.0,112590.0,0.17741]
[1758536015729,1.53550175,112600.0,112590.0,0.17741]
[1758536018630,1.53550175,112600.0,112590.0,0.15633]
[1758536020932,1.53550175,112600.0,112590.0,0.07409]
[1758536021134,1.53550175,112600.0,112590.0,0.00127]
[1758536021333,1.53550175,112600.0,112590.0,0.02235]
[1758536022629,1.53550175,112600.0,112590.0,0.00127]
[1758536024235,1.53550175,112600.0,112590.0,0.02235]
[1758536028436,1.26281174,112600.0,112590.0,0.02235]
[1758536028637,1.53550175,112600.0,112590.0,0.02235]
[1758536028839,1.53550175,112600.0,112590.0,0.00127]
[1758536029137,1.53550175,112600.0,112590.0,0.02235]
[1758536034646,1.53550175,112600.0,112590.0,0.00127]
[1758536035039,1.26281174,112600.0,112590.0,0.02422]
[1758536035445,1.53550175,112600.0,112590.0,0.02422]
[1758536035741,1.26281174,112600.0,112590.0,0.02422]
[1758536035942,1.53550175,112600.0,112590.0,0.02422]
[1758536040644,1.53550175,112600.0,112590.0,0.0381]
[1758536041152,1.53390175,112600.0,112590.0,0.0381]
[1758536042455,0.69614175,112600.0,112590.0,0.0381]
[1758536042757,0.42345174,112600.0,112590.0,0.0381]
[1758536042954,1.26109174,112600.0,112590.0,0.0381]
[1758536044955,0.42345174,112600.0,112590.0,0.0381]
[1758536045160,1.26109174,112600.0,112590.0,0.0381]
[1758536045359,1.26069174,112600.0,112590.0,0.0381]
[1758536045755,0.89989174,112600.0,112590.0,0.0381]
[1758536045956,0.90029174,112600.0,112590.0,0.0381]
[1758536047562,0.90017174,112600.0,112590.0,0.66954541]
[1758536047756,0.90017174,112600.0,112590.0,1.03034541]
[1758536048262,0.90017174,112600.0,112590.0,0.3968554]
[1758536048563,0.90017174,112600.0,112590.0,0.1268554]
[1758536050065,0.89985174,112600.0,112590.0,0.1268554]
[1758536050659,0.89985174,112600.0,112590.0,0.1996754]
[1758536051465,0.03849993,112600.0,112590.0,1.37316541]
[1758536051653,0.74121993,112600.0,112590.0,1.37316541]
[1758536051858,0.74081993,112600.0,112590.0,1.37316541]
[1758536052062,0.74121993,112600.0,112590.0,1.37316541]
[1758536052266,0.03849993,112600.0,112590.0,1.37316541]
[1758536052667,0.87557993,112600.0,112590.0,1.1004754]
[1758536052865,0.87157993,112600.0,112590.0,1.37316541]
[1758536061664,0.87157993,112600.0,112590.0,1.1004754]
[1758536061865,0.87157993,112600.0,112590.0,1.37316541]
[1758536062371,0.87157993,112600.0,112590.0,1.08316541]
[1758536062571,0.87157993,112600.0,112590.0,0.8104754]
[1758536063467,1.14426994,112600.0,112590.0,0.11092]
[1758536063872,1.14426994,112600.0,112590.0,0.1996754]
[1758536064273,0.30718994,112600.0,112590.0,0.1996754]
[1758536064476,0.87081993,112600.0,112590.0,0.1996754]
[1758536065072,0.03449993,112600.0,112590.0,0.1996754]
[1758536065269,0.87077993,112600.0,112590.0,0.1996754]
[1758536067879,0.87077993,112600.0,112590.0,0.11092]
[1758536068679,0.87077993,112600.0,112590.0,0.1996754]
[1758536070783,0.87077993,112600.0,112590.0,0.11092]
[1758536070980,0.87077993,112600.0,112590.0,0.1996754]
[1758536071283,0.87077993,112600.0,112590.0,0.11092]
[1758536073189,1.14346994,112600.0,112590.0,0.11092]
[1758536073391,1.14346994,112600.0,112590.0,0.1996754]
[1758536074080,0.87077993,112600.0,112590.0,0.1996754]
[1758536074493,0.03449993,112600.0,112590.0,0.1996754]
[1758536074691,1.07474737,112600.0,112590.0,0.40416284]
[1758536076289,1.07458737,112600.0,112590.0,0.40416284]
[1758536077790,1.09883421,112600.0,112590.0,0.40416284]
[1758536083296,1.09883421,112600.0,112590.0,0.1996754]
[1758536083496,1.09883421,112600.0,112590.0,0.40416284]
[1758536084194,1.07458737,112600.0,112590.0,0.40416284]
[1758536084894,1.07402737,112600.0,112590.0,0.40416284]
[1758536085689,1.07402737,112600.0,112590.0,0.1996754]
[1758536085889,1.07402737,112600.0,112590.0,0.40416284]
[1758536086694,1.07402737,112600.0,112590.0,0.48640284]
[1758536089697,1.07374737,112600.0,112590.0,0.48640284]
[1758536089897,1.07374737,112600.0,112590.0,0.78640284]
[1758536090199,1.07374737,112600.0,112590.0,0.48640284]
[1758536090398,1.07374737,112600.0,112590.0,0.79640284]
[1758536090599,1.07374737,112600.0,112590.0,0.48640284]
[1758536090799,1.07374737,112600.0,112590.0,0.78640284]
[1758536091201,0.86925993,112600.0,112590.0,0.78640284]
[1758536091404,1.07374737,112600.0,112590.0,0.78640284]
[1758536092795,0.05876405,112600.0,112590.0,0.78640284]
[1758536093001,1.09785149,112600.0,112590.0,0.48640284]
[1758536093300,1.09785149,112600.0,112590.0,0.78640284]
[1758536094001,0.89336405,112600.0,112590.0,0.78640284]
[1758536094196,0.05876405,112600.0,112590.0,0.78640284]
[1758536094398,0.05876405,112600.0,112590.0,1.40720284]
[1758536094595,0.05876405,112600.0,112590.0,1.61169028]
[1758536094795,0.89284405,112600.0,112590.0,1.40720284]
[1758536095101,0.89324405,112600.0,112590.0,1.40720284]
[1758536095600,0.05876405,112600.0,112590.0,1.40720284]
[1758536095800,0.89320405,112600.0,112590.0,1.40720284]
[1758536096197,0.86893993,112600.0,112590.0,1.40720284]
[1758536097301,0.03449993,112600.0,112590.0,1.40720284]
[1758536097502,0.86889993,112600.0,112590.0,1.40720284]
[1758536101908,0.86889993,112600.0,112590.0,1.43720284]
[1758536103104,0.86889993,112600.0,112590.0,1.19720284]
[1758536103303,0.84736993,112600.0,112590.0,1.42720284]
[1758536104010,0.84716993,112600.0,112590.0,1.43720284]
[1758536104208,0.84716993,112600.0,112590.0,1.09720284]
[1758536104408,0.84716993,112600.0,112590.0,1.41720284]
[1758536105111,0.84716993,112600.0,112590.0,1.09720284]
[1758536105308,0.83428,112600.0,112590.0,1.36720284]
[1758536105508,0.0004,112600.0,112590.0,1.36720284]
[1758536106108,0.83416,112600.0,112590.0,1.36720284]
[1758536106312,0.83416,112600.0,112590.0,1.32169028]
[1758536106909,0.83376,112600.0,112590.0,1.32169028]
[1758536107113,0.0004,112600.0,112590.0,1.32169028]
[1758536107820,0.75737015,112610.0,112600.0,0.1233768]
[1758536108117,0.96175759,112610.0,112600.0,0.68866424]
[1758536108318,0.96255759,112610.0,112600.0,0.68866424]
[1758536109118,0.75907015,112610.0,112600.0,0.68866424]
[1758536109318,0.96355759,112610.0,112600.0,0.68866424]
[1758536109920,0.75907015,112610.0,112600.0,0.68866424]
[1758536110111,0.96355759,112610.0,112600.0,0.68866424]
[1758536110520,0.75907015,112610.0,112600.0,0.68866424]
[1758536110718,0.96355759,112610.0,112600.0,0.77089424]
[1758536110920,0.96655759,112610.0,112600.0,0.77177424]
[1758536111119,0.76207015,112610.0,112600.0,0.77177424]
[1758536111319,0.96655759,112610.0,112600.0,0.77177424]
[1758536111623,0.96655759,112610.0,112600.0,0.84485424]
[1758536112409,0.76207015,112610.0,112600.0,0.84485424]
[1758536112912,0.96655759,112610.0,112600.0,0.6403668]
[1758536113114,1.57735759,112610.0,112600.0,0.17729]
[1758536113813,1.21655759,112610.0,112600.0,0.48405464]
[1758536115018,0.59035759,112610.0,112600.0,0.48405464]
[1758536115221,0.96919015,112610.0,112600.0,0.84485464]
[1758536115419,1.17367759,112610.0,112600.0,0.84485464]
[1758536115926,1.17367759,112610.0,112600.0,0.48405464]
[1758536121021,0.13587015,112610.0,112600.0,0.94854208]
[1758536121229,0.13507015,112610.0,112600.0,1.30934208]
[1758536121525,0.96443015,112610.0,112600.0,1.30934208]
[1758536121923,0.13147015,112610.0,112600.0,1.30934208]
[1758536122125,0.96399015,112610.0,112600.0,1.30934208]
[1758536122325,0.96439015,112610.0,112600.0,1.30934208]
[1758536122919,0.95370862,112610.0,112600.0,1.30934208]
[1758536125722,0.95370862,112610.0,112600.0,0.6403672]
[1758536125929,1.15819606,112610.0,112600.0,1.30934208]
[1758536126127,0.95370862,112610.0,112600.0,1.30934208]
[1758536127533,0.96433369,112610.0,112600.0,1.30934208]
[1758536127733,1.16882113,112610.0,112600.0,1.04934208]
[1758536128033,1.16882113,112610.0,112600.0,0.84485464]
[1758536131335,0.33590113,112610.0,112600.0,0.84485464]
[1758536131537,1.16846113,112610.0,112600.0,0.84485464]
[1758536131738,1.16842113,112610.0,112600.0,0.84485464]
[1758536132036,1.16838113,112610.0,112600.0,0.84485464]
[1758536134839,1.16838113,112610.0,112600.0,0.75610744]
[1758536135739,1.16838113,112610.0,112600.0,0.39530744]
[1758536136040,1.57469369,112610.0,112600.0,0.19082]
[1758536136240,1.77918113,112610.0,112600.0,0.15619]
[1758536136433,1.98366857,112610.0,112600.0,0.15619]
[1758536136734,1.87144121,112610.0,112600.0,0.15619]
[1758536139142,1.03896121,112610.0,112600.0,0.15619]
[1758536139342,0.78896121,112610.0,112600.0,0.15619]
[1758536139545,1.62112121,112610.0,112600.0,0.15619]
[1758536140944,1.62112121,112610.0,112600.0,0.15623]
[1758536143347,1.59705828,112610.0,112600.0,0.15623]
[1758536144243,1.62108355,112610.0,112600.0,0.15623]
[1758536145445,1.62088355,112610.0,112600.0,0.15623]
[1758536146245,0.51623896,112610.0,112600.0,0.15623]
[1758536146443,1.34811896,112610.0,112600.0,0.15623]
[1758536146638,1.62080355,112610.0,112600.0,0.15623]
[1758536147048,0.51623896,112610.0,112600.0,0.15623]
[1758536147248,1.62076355,112610.0,112600.0,0.15623]
[1758536147449,1.59673828,112610.0,112600.0,0.15623]
[1758536150844,0.76489828,112610.0,112600.0,0.15623]
[1758536151050,1.59669828,112610.0,112600.0,0.15623]
[1758536151446,0.76489828,112610.0,112600.0,0.15623]
[1758536151647,1.59665828,112610.0,112600.0,0.15623]
[1758536153154,1.62067691,112610.0,112600.0,0.15623]
[1758536157653,1.62047691,112610.0,112600.0,0.15623]
[1758536160563,1.34779232,112610.0,112600.0,0.15623]
[1758536160862,0.78891691,112610.0,112600.0,0.15623]
[1758536161252,1.62039691,112610.0,112600.0,0.15623]
[1758536162261,1.62039691,112610.0,112600.0,0.1794]
[1758536162761,1.62039691,112610.0,112600.0,0.15623]
[1758536166264,1.65223884,112610.0,112600.0,0.15623]
[1758536169874,0.82075884,112610.0,112600.0,0.15623]
[1758536170170,1.65191884,112610.0,112600.0,0.15623]
[1758536170966,0.54807425,112610.0,112600.0,0.1794]
[1758536171166,1.65191884,112610.0,112600.0,0.1794]
[1758536171671,1.65191884,112610.0,112600.0,0.15623]
[1758536171873,0.82075884,112610.0,112600.0,0.15623]
[1758536172073,1.65191884,112610.0,112600.0,0.15623]
[1758536173075,1.65191884,112610.0,112600.0,0.1794]
[1758536174176,1.62007691,112610.0,112600.0,0.1794]
[1758536174376,1.62007691,112610.0,112600.0,0.15623]
[1758536177782,0.78891691,112610.0,112600.0,0.15623]
[1758536177977,0.78891691,112610.0,112600.0,0.17752]
[1758536178281,0.78891691,112610.0,112600.0,1.46346929]
[1758536178282,0.96535926,112610.0,112600.0,1.46346929]
[1758536178480,0.96575926,112610.0,112600.0,1.46346929]
[1758536178681,0.96575926,112610.0,112600.0,1.1907847]
[1758536179679,0.96575926,112610.0,112600.0,0.44124]
[1758536179973,1.23844385,112610.0,112600.0,0.44124]
[1758536180278,1.59924385,112610.0,112600.0,0.19124]
[1758536187386,1.60040874,112610.0,112600.0,0.19124]
[1758536187679,1.60040874,112610.0,112600.0,0.17752]
[1758536187884,1.60040874,112610.0,112600.0,0.15623]
[1758536188078,1.60040874,112610.0,112600.0,0.17804]
[1758536189085,1.60040874,112610.0,112600.0,0.15623]
[1758536192181,1.32732415,112610.0,112600.0,0.17804]
[1758536192386,0.76948874,112610.0,112600.0,0.1919]
[1758536192589,1.59992874,112610.0,112600.0,0.1919]
[1758536192790,0.76948874,112610.0,112600.0,0.1919]
[1758536193082,1.59992874,112610.0,112600.0,0.1919]
[1758536193683,1.59992874,112610.0,112600.0,0.15623]
[1758536196994,3.47064874,112610.0,112600.0,0.15623]
[1758536198592,3.60696703,112610.0,112600.0,0.15623]
[1758536198789,0.96620415,112610.0,112600.0,1.11090288]
[1758536199093,0.96620415,112610.0,112600.0,1.36594644]
[1758536199292,0.96580415,112610.0,112600.0,1.32044788]